Workbook

Sheet calculations
A1: neilcurve = (alfa ^ 2 - (3 * beta * x * g) ^ (2 / 3)) / stath 'dn/dx[ | C1: dt | D1: 0.0006 | E1: 981 | F1: =xmiden/100 -> 0.06795786612 | G1: -100 | H1: 50 | I1: =2*981 -> 1962 | J1: 129 | K1: 1 | L1: =V0 -> 111.8033989 | M1: varxiki | N1: YCURRENT | O1: Rcurvature | P1: tanth | Q1: =polapl*alfa -> -100 | S1: xcm | T1: ycm
A2: stath = 2 * g | E2: g | F2: deltax | G2: alfa | H2: beta | I2: stath=2g | J2: metirits | K2: polapl | L2: xcurrent | M2: =IF((alfa^2-2*g*ycurrent)>0,(alfa^2-2*g*ycurrent)^(3/2)/(3*g*beta),0) -> 0.8025463196 | N2: =IF(metritis<metrmax,metritis*dt*beta,(metrmax-0.5)*dt*beta) -> 3.87 | O2: =(1+dy_dx_current^2)^(3/2)/d²y_dx²current -> 6.87648491 | P2: =-beta/SQRT(alfa^2-2*g*ycurrent) -> -1.019122867 | Q2: =-1/tanth -> 0.9812359553 | S2: =xcurrent+Rcurvature*nx -> 5.710786592 | T2: =ycurrent+Rcurvature*ny -> 8.686141832 | AA2: d2neildx2 | AB2: =1/9/g*(3*beta*g)^(2/3)*xcurrent^(-4/3) -> 0.4232872472 | AD2: Function d2neildx2(ALfa, BEta, x) | AF2: 239
A3: dneildx = -1 / 3 / g * (3 * beta * g) ^ (2 / 3) * Abs(x) ^ (-1 / 3) | K3: dy/dx current | L3: =DYOVERDX -> -1.019122867 | M3: =INT(xmiden*5/deltax) -> 500 | N3: =D2YD2X -> 0.4232872472 | O3: d²y/dx² current | P3: costh | Q3: sinth | S3: =xcurrent -> 0.8025463196 | T3: =ycurrent -> 3.87 | AA3: dneildx | AB3: =--1/3/g*(3*beta*g)^(2/3)*xcurrent^(-1/3) -> 1.019122867 | AD3: g = 9.81
A4: y | B4: x | C4: dy/dx | D4: prosegish | F4: dy/dt | G4: dx/dt | H4: d2y/dx2 | I4: AKTINAKAMP | K4: 0 | M4: =(alfa^2)/(2*g) -> 5.096839959 | N4: dydx0 | P4: =1/SQRT(1+tanth^2) -> 0.7003784485 | Q4: =tanth*P4 -> -0.7137716924 | AD4: d2neildx2 = 1 / 9 / g * (3 * BEta * g) ^ (2 / 3) * x ^ (-4 / 3)
A5: 0 | B5: =xmiden -> 6.795786612 | C5: =-beta/(SQRT(alfa^2-stath*A5)) -> -0.5 | E5: =-((3*beta*981)^(2/3))/(3*981*(A5)^(1/3)) ->  | F5: =SQRT(alfa^2+beta^2-stath*B5-(alfa^2-stath*B5)) -> 50 | G5: =SQRT((alfa^2-stath*A5)) -> 100 | H5: =g*beta^2/(alfa^2-2*g*A5)^2 -> 0.024525 | I5: =(1+(C5)^2)^1.5/H5 -> 56.9844031 | L5: xmiden | M5: =(alfa ^ 2 - 2 * g * 0) ^ (3 / 2) / (3 * beta * g) -> 6.795786612 | N5: =-1/3/g*(3*beta*g)^(2/3)*ABS(xmiden)^(-1/3) -> -0.5 | P5: NX | Q5: NY | V5: Function neilcurve(alfa, beta, x) | AD5: End Function
A6: =A5+dt*beta -> 0.03 | B6: =(SQRT(alfa^2-2*g*A6))^3/(3*g*beta) -> 6.735874989 | C6: -0.501478028 | D6: =(B6-B5)/deltax -> -0.8815995353 | E6: -3.047961643 | F6: =SQRT(alfa^2+beta^2-stath*B6-(alfa^2-stath*B6)) -> 50 | G6: 99.70526566 | H6: 0.02481627746 | I6: =(1+(C6)^2)^1.5/H6 -> 56.41561733 | M6: =metritis*beta -> 6450 | P6: =1/SQRT(1+AT31^2) -> 0.7137716924 | Q6: =AT31*P6 -> 0.7003784485 | V6: '=(alfa^2-(3*beta*RC[-1]*981)^(2/3))/stath | AD6: Function aktinakamp(ALfa, BEta, x)
A7: 0.06 | B7: 6.676140468 | C7: -0.5029692413 | D7: -0.878993474 | E7: -2.419168759 | F7: 50 | G7: 99.40965748 | H7: 0.02511277505 | I7: 55.84965466 | L7: . From work-energy theorem: | V7: g = 981 | AD7: On Error GoTo piokato
A8: 0.09 | B8: 6.616583576 | C8: -0.5044738372 | D8: -0.8763796631 | E8: -2.113338569 | F8: 50 | G8: 99.11316764 | H8: 0.02541461825 | I8: 55.28651507 | K8: V0= | L8: =SQRT(alfa^2+beta^2) -> 111.8033989 | R8: =dx_dt*tanth -> 50 | V8: stath = 2 * g | AD8: aktinakamp = (1 + (dneildx(ALfa, BEta, x)) ^ 2) ^ (3 / 2) / Abs(d2neildx2(ALfa, BEta, x))
A9: 0.12 | B9: 6.557204845 | C9: -0.5059920171 | D9: -0.8737580331 | E9: -1.920095516 | F9: 50 | G9: 98.81578821 | H9: 0.02572193636 | I9: 54.72619851 | AD9: Exit Function
A10: 0.15 | B10: 6.49800481 | C10: -0.5075239866 | D10: -0.8711285134 | E10: -1.782458782 | F10: 50 | G10: 98.51751113 | H10: 0.02603486257 | I10: 54.16870494 | AD10: piokato:
A11: 0.18 | B11: 6.438984013 | C11: -0.5090699557 | D11: -0.8684910324 | E11: -1.677357934 | F11: 50 | G11: 98.21832823 | H11: 0.02635353417 | I11: 53.61403433 | V11: End Function | AD11: aktinakamp = 0 | AL11: So we have: | AM11: =SQRT(V0^2-2*g*ycurrent) -> 70.05041042
A12: 0.21 | B12: 6.380142999 | C12: -0.510630139 | D12: -0.8658455172 | E12: -1.593346206 | F12: 50 | G12: 97.91823119 | H12: 0.02667809269 | I12: 53.06218664 | M12: ymax | N12: =alfa^2/(2*g) -> 5.096839959 | AD12: End Function | AL12: =-SQRT(alfa^2-2*g*ycurrent) -> -49.06179777 | AM12: dxdt | AN12: =V*ny -> 49.06179777
A13: 0.24 | B13: 6.32148232 | C13: -0.5122047555 | D13: -0.8631918941 | E13: -1.523980821 | F13: 50 | G13: 97.6172116 | H13: 0.02700868402 | I13: 52.51316182 | M13: metrmax | N13: =INT(N12/(beta*dt))+1 -> 170 | W13: synim | X13: =1/SQRT(1+dy_dx_current^2) -> 0.7003784485 | AL13: and | AM13: neilcurve = (alfa ^ 2 - (3 * beta * x * g) ^ (2 / 3)) / stath
A14: 0.27 | B14: 6.263002531 | C14: -0.5137940293 | D14: -0.860530088 | E14: -1.465307123 | F14: 50 | G14: 97.31526088 | H14: 0.0273454586 | I14: 51.96695984 | W14: hmiton | X14: =dy_dx_current*X13 -> -0.7137716924 | AD14: dneildx = -1 / 3 / g * (3 * BEta * g) ^ (2 / 3) * Abs(x) ^ (-1 / 3) | AL14: then | AM14: syntx | AN14: =((3*g*beta)^(2/3))/(2*g) -> 1.420608824 | AQ14: vx current | AR14: vy current
A15: 0.3 | B15: 6.204704195 | C15: -0.5153981891 | D15: -0.8578600227 | E15: -1.414738473 | F15: 50 | G15: 97.01237035 | H15: 0.0276885716 | I15: 51.42358065 | V15: rx | W15: ry | AL15: . From: | AM15: dy/dx= | AN15: =-2/3*SYNTX*xcurrent^(-1/3) -> -1.019122867 | AO15: d2ydx2 | AP15: =-2/3*(-1/3)*SYNTX*xcurrent^(-4/3) -> 0.4232872472 | AQ15: =IF(xcurrent<>0,dx_dt,0) -> -49.06179777 | AR15: =beta/1 -> 50
A16: 0.33 | B16: 6.146587877 | C16: -0.5170174689 | D16: -0.855181621 | E16: -1.370498619 | F16: 50 | G16: 96.70853116 | H16: 0.02803818309 | I16: 50.88302422 | V16: =XCM -> 5.710786592 | W16: =YCM -> 8.686141832 | AL16: then: | AN16: (3GBETA*X)^(2/3)=a^2-2gy | AQ16: =AQ15/50 -> -0.9812359553 | AR16: =AR15/50 -> 1
A17: 0.36 | B17: 6.088654149 | C17: -0.5186521075 | D17: -0.8524948041 | E17: -1.331319874 | F17: 50 | G17: 96.40373437 | H17: 0.02839445822 | I17: 50.34529049 | AN17: =(alfa^2-(3*g*beta*xcurrent)^(2/3))/(2*g) -> 3.87 | AQ17: x | AR17: y
A18: 0.39 | B18: 6.030903589 | C18: -0.5203023494 | D18: -0.8497994923 | E18: -1.296268736 | F18: 50 | G18: 96.09797084 | H18: 0.0287575674 | I18: 49.81037942 | U18: =0 -> 0 | V18: =rx+Rcurvature*COS(U18) -> 12.5872715 | W18: =ry+Rcurvature*SIN(U18) -> 8.686141832 | AN18: y=(alfa^2-(3*g*beta*xcurrent)^(2/3))/(2*g) | AQ18: =xcurrent -> 0.8025463196 | AR18: =ycurrent -> 3.87
A19: 0.42 | B19: 5.973336779 | C19: -0.5219684443 | D19: -0.8470956045 | E19: -1.264639722 | F19: 50 | G19: 95.79123133 | H19: 0.02912768656 | I19: 49.27829097 | U19: =U18+PI()/40 -> 0.07853981634 | V19: 12.56607359 | W19: 9.22566462 | AL19: and by integration we get: | AQ19: =AQ18+AQ16 -> -0.1786896357 | AR19: =AR18+AR16 -> 4.87
A20: 0.45 | B20: 5.915954308 | C20: -0.5236506478 | D20: -0.8443830583 | E20: -1.235887892 | F20: 50 | G20: 95.48350643 | H20: 0.02950499731 | I20: 48.74902508 | U20: =U19+PI()/40 -> 0.1570796327 | V20: 12.50261056 | W20: 9.76186107 | AL20: d2x/dt2 | AM20: =g*beta/SQRT(alfa^2-2*g*ycurrent) -> 999.7595325 | AQ20: =-1/20*AR16+18/20*AQ16+AQ18 -> -0.1305660402 | AR20: =1/20*AQ16+18/20*AR16+AR18 -> 4.720938202
A21: 0.48 | B21: 5.85875677 | C21: -0.5253492211 | D21: -0.8416617701 | E21: -1.209584379 | F21: 50 | G21: 95.17478658 | H21: 0.02988968717 | I21: 48.22258172 | U21: 0.235619449 | V21: 12.39727368 | W21: 10.29142535 | AQ21: =1/20*AR16+18/20*AQ16+AQ18 -> -0.03056604018 | AR21: =-1/20*AQ16+18/20*AR16+AR18 -> 4.819061798
A22: 0.51 | B22: 5.801744765 | C22: -0.5270644314 | D22: -0.8389316546 | E22: -1.185386172 | F22: 50 | G22: 94.86506206 | H22: 0.03028194981 | I22: 47.69896082 | U22: 0.3141592654 | V22: 12.25071237 | W22: 10.81109253 | AL22: =(1+dy_dx_current^2)^1.5/d²y_dx²current -> 6.87648491 | AQ22: =AQ19 -> -0.1786896357 | AR22: 4.87
A23: 0.54 | B23: 5.744918899 | C23: -0.5287965522 | D23: -0.8361926255 | E23: -1.163015034 | F23: 50 | G23: 94.55432301 | H23: 0.03068198533 | I23: 47.17816234 | U23: 0.3926990817 | V23: 12.06383026 | W23: 11.31765868 | AL23: =SQRT(alfa^2-2*g*ycurrent)*(alfa^2+beta^2-2*g*ycurrent)^1.5/(beta^2*g) -> 6.87648491 | AN23: velocity | AQ23: acceleration
A24: 0.57 | B24: 5.688279783 | C24: -0.530545863 | D24: -0.8334445949 | E24: -1.142242452 | F24: 50 | G24: 94.24255939 | H24: 0.03109000045 | I24: 46.66018623 | U24: 0.471238898 | V24: 11.83777951 | W24: 11.80800065 | AN24: =SQRT(dx_dt^2+beta^2) -> 70.05041042 | AQ24: ax | AR24: ay
A25: 0.6 | B25: 5.631828035 | C25: -0.5323126501 | D25: -0.8306874734 | E25: -1.12287867 | F25: 50 | G25: 93.92976099 | H25: 0.03150620881 | I25: 46.14503243 | U25: 0.5497787144 | V25: 11.57395382 | W25: 12.27909533 | AL25: =velocity^2/Rcurvature+g*ny -> 1400.671312 | AM25: =AL25*nx -> 999.7595325 | AN25: centripetal | AO25: au | AQ25: =AN28/150 -> 6.66506355 | AR25: =AO28/100 -> 0
A26: 0.63 | B26: 5.575564278 | C26: -0.5340972066 | D26: -0.8279211703 | E26: -1.104764556 | F26: 50 | G26: 93.61591745 | H26: 0.03193083127 | I26: 45.63270089 | U26: 0.6283185307 | V26: 11.27397975 | W26: 12.72803825 | AL26: =alfa^2+beta^2-2*g*ycurrent -> 4907.06 | AN26: =V^2/Rcurvature -> 713.6000536 | AO26: =g -> 981 | AQ26: x | AR26: y
A27: 0.66 | B27: 5.519489145 | C27: -0.5358998321 | D27: -0.8251455931 | E27: -1.087765475 | F27: 50 | G27: 93.30101822 | H27: 0.03236409615 | I27: 45.12319156 | U27: 0.7068583471 | V27: 10.93970674 | W27: 13.15206154 | AL27: =V^2/Rcurvature -> 713.6000536 | AN27: ax | AO27: ay | AQ27: =xcurrent -> 0.8025463196 | AR27: =ycurrent -> 3.87
A28: 0.69 | B28: 5.46360327 | C28: -0.5377208339 | D28: -0.8223606481 | E28: -1.0717666 | F28: 50 | G28: 92.98505256 | H28: 0.0328062396 | I28: 44.61650437 | U28: 0.7853981634 | V28: 10.5731957 | W28: 13.54855094 | AL28: =velocity^2/centripetal -> 6.87648491 | AN28: =d2xd2t -> 999.7595325 | AO28: 0 | AQ28: =AQ27+AQ25 -> 7.46760987 | AR28: 3.87 | AT28: centripetal
A29: 0.72 | B29: 5.407907297 | C29: -0.5395605261 | D29: -0.8195662395 | E29: -1.056669284 | F29: 50 | G29: 92.66800958 | H29: 0.03325750587 | I29: 44.11263926 | U29: 0.8639379797 | V29: 10.1767063 | W29: 13.91506198 | AL29: =V^2/Rcurvature -> 713.6000536 | AN29: =AN26*nx -> 509.3475179 | AQ29: =-1/20*AR25+18/20*AQ25+AQ27 -> 6.801103515 | AR29: =1/20*AQ25+18/20*AR25+AR27 -> 4.203253178 | AT29: r
A30: 0.75 | B30: 5.352401876 | C30: -0.5414192307 | D30: -0.8167622705 | E30: -1.042388219 | F30: 50 | G30: 92.34987818 | H30: 0.03371814768 | I30: 43.61159618 | U30: 0.9424777961 | V30: 9.752683009 | W30: 14.24933499 | AL30: =AL29+g*ny -> 1400.671312 | AQ30: =1/20*AR25+18/20*AQ25+AQ27 -> 6.801103515 | AR30: =-1/20*AQ25+18/20*AR25+AR27 -> 3.536746822 | AT30: =dy_dx_current -> -1.019122867
A31: 0.78 | B31: 5.297087663 | C31: -0.5432972775 | D31: -0.813948642 | E31: -1.028849177 | F31: 50 | G31: 92.03064707 | H31: 0.03418842655 | I31: 43.11337507 | U31: 1.021017612 | V31: 9.303740087 | W31: 14.54930906 | AL31: =g*ny -> 687.071258 | AQ31: =AQ28 -> 7.46760987 | AR31: 3.87 | AT31: =-1/AT30 -> 0.9812359553
A32: 0.81 | B32: 5.241965322 | C32: -0.5451950043 | D32: -0.8111252537 | E32: -1.015987214 | F32: 50 | G32: 91.71030476 | H32: 0.03466861319 | I32: 42.61797586 | U32: 1.099557429 | V32: 8.832645412 | W32: 14.81313475 | AL32: ny
A33: 0.84 | B33: 5.187035522 | C33: -0.5471127572 | D33: -0.8082920032 | E33: -1.003745212 | F33: 50 | G33: 91.38883958 | H33: 0.03515898788 | I33: 42.12539848 | U33: 1.178097245 | V33: 8.34230344 | W33: 15.0391855 | AT33: nx
A34: 0.87 | B34: 5.132298941 | C34: -0.5490508909 | D34: -0.8054487865 | E34: -0.9920726981 | F34: 50 | G34: 91.06623963 | H34: 0.03565984089 | I34: 41.63564287 | U34: 1.256637061 | V34: 7.83573729 | W34: 15.22606762
A35: 0.9 | B35: 5.077756264 | C35: -0.551009769 | D35: -0.8025954976 | E35: -0.9809248702 | F35: 50 | G35: 90.7424928 | H35: 0.03617147288 | I35: 41.14870897 | U35: 1.335176878 | V35: 7.316070114 | W35: 15.37262892
A36: 0.93 | B36: 5.023408182 | C36: -0.5529897642 | D36: -0.7997320288 | E36: -0.9702617988 | F36: 50 | G36: 90.41758678 | H36: 0.0366941954 | I36: 40.66459669 | U36: 1.413716694 | V36: 6.78650583 | W36: 15.4779658
A37: 0.96 | B37: 4.969255394 | C37: =-beta/(SQRT(alfa^2-stath*A37)) -> -0.5549912587 | D37: -0.7968582703 | E37: =-((3*beta*981)^(2/3))/(3*981*(A37)^(1/3)) -> -0.9600477582 | F37: =SQRT(alfa^2+beta^2-stath*B37-(alfa^2-stath*B37)) -> 50 | G37: =SQRT((alfa^2-stath*A37)) -> 90.09150903 | H37: =g*beta^2/(alfa^2-2*g*A37)^2 -> 0.03722833132 | I37: 40.18330597 | U37: 1.49225651 | V37: 6.250309379 | W37: 15.54142883
A38: =A37+dt*beta -> 0.99 | B38: =(SQRT(alfa^2-2*g*A38))^3/(3*g*beta) -> 4.915298608 | C38: -0.5570146444 | D38: =(B38-B37)/deltax -> -0.7939741103 | E38: -0.9502506689 | F38: 50 | G38: 89.76424678 | H38: 0.03777421535 | I38: 39.70483674 | U38: 1.570796327 | V38: 5.710786592 | W38: 15.56262674 | AZ38: v²/R
A39: 1.02 | B39: 4.861538537 | C39: -0.5590603232 | D39: -0.7910794351 | E39: -0.9408416284 | F39: 50 | G39: 89.43578702 | H39: 0.03833219456 | I39: 39.22918891 | U39: 1.649336143 | V39: 5.171263804 | W39: 15.54142883 | AV39: vx | AZ39: =AN26 -> 713.6000536
A40: 1.05 | B40: 4.807975906 | C40: -0.5611287076 | D40: -0.7881741289 | E40: -0.931794514 | F40: 50 | G40: 89.10611651 | H40: 0.03890262893 | I40: 38.75636242 | U40: 1.727875959 | V40: 4.635067353 | W40: 15.4779658 | AV40: vx current | AW40: vy current | AZ40: =IF(xcurrent<>0,centripetal*nx/150,AZ39*hmion) -> 3.39565012 | BA40: =centripetal*ny/150 -> 3.331933989
A41: 1.08 | B41: 4.754611443 | C41: -0.5632202207 | D41: -0.7852580736 | E41: -0.9230856445 | F41: 50 | G41: 88.77522177 | H41: 0.03948589193 | I41: 38.28635717 | U41: 1.806415776 | V41: 4.10550307 | W41: 15.37262892 | AV41: =IF(xcurrent<>0,beta/dy_dx_current/25,0) -> -1.962471911 | AW41: 0 | AZ41: x | BA41: y
A42: 1.11 | B42: 4.701445887 | C42: -0.5653352968 | D42: -0.782331149 | E42: -0.9146934923 | F42: 50 | G42: 88.44308905 | H42: 0.04008237114 | I42: 37.81917309 | U42: 1.884955592 | V42: 3.585835893 | W42: 15.22606762 | AT42: mg | AV42: x | AW42: y | AZ42: =xcurrent -> 0.8025463196 | BA42: =ycurrent -> 3.87
A43: 1.14 | B43: 4.648479986 | C43: -0.5674743817 | D43: -0.7793932328 | E43: -0.9065984351 | F43: 50 | G43: 88.10970435 | H43: 0.0406924689 | I43: 37.3548101 | U43: 1.963495408 | V43: 3.079269744 | W43: 15.0391855 | AV43: =xcurrent -> 0.8025463196 | AW43: =ycurrent -> 3.87 | AZ43: =AZ42+AZ40 -> 4.198196439 | BA43: =BA42+BA40 -> 7.201933989
A44: 1.17 | B44: 4.595714495 | C44: -0.5696379331 | D44: -0.7764442 | E44: -0.8987825424 | F44: 50 | G44: 87.7750534 | H44: 0.04131660294 | I44: 36.8932681 | U44: 2.042035225 | V44: 2.588927771 | W44: 14.81313475 | AV44: =AV43+AV41 -> -1.159925591 | AW44: 3.87 | AZ44: =-1/20*BA40+18/20*AZ40+AZ42 -> 3.692034728 | BA44: =1/20*AZ40+18/20*BA40+BA42 -> 7.038523096
A45: 1.2 | B45: 4.543150178 | C45: -0.5718264209 | D45: -0.7734839237 | E45: -0.8912293909 | F45: 50 | G45: 87.43912168 | H45: 0.04195520718 | I45: 36.434547 | U45: 2.120575041 | V45: 2.117833096 | W45: 14.54930906 | AV45: =-1/20*AW41+18/20*AV41+AV43 -> -0.9636784 | AW45: =1/20*AV41+18/20*AW41+AW43 -> 3.771876404 | AZ45: =1/20*BA40+18/20*AZ40+AZ42 -> 4.025228127 | BA45: =-1/20*AZ40+18/20*BA40+BA42 -> 6.698958084
A46: 1.23 | B46: 4.490787808 | C46: -0.574040328 | D46: -0.770512274 | E46: -0.8839239033 | F46: 50 | G46: 87.10189435 | H46: 0.0426087324 | I46: 35.97864672 | U46: 2.199114858 | V46: 1.668890174 | W46: 14.24933499 | AV46: =1/20*AW41+18/20*AV41+AV43 -> -0.9636784 | AW46: =-1/20*AV41+18/20*AW41+AW43 -> 3.968123596 | AZ46: =AZ43 -> 4.198196439 | BA46: 7.201933989
A47: 1.26 | B47: 4.438628167 | C47: -0.5762801501 | D47: -0.7675291191 | E47: -0.8768522092 | F47: 50 | G47: 86.76335632 | H47: 0.04327764708 | I47: 35.52556716 | U47: 2.277654674 | V47: 1.244866888 | W47: 13.91506198 | AV47: =AV44 -> -1.159925591 | AW47: 3.87 | AZ47: =SQRT(AZ46^2+BA46^2) -> 8.336228555
A48: 1.29 | B48: 4.386672046 | C48: -0.5785463968 | D48: -0.7645343241 | E48: -0.8700015214 | F48: 50 | G48: 86.42349218 | H48: 0.04396243825 | I48: 35.07530822 | U48: 2.35619449 | V48: 0.8483774811 | W48: 13.54855094 | AZ48: =SQRT(AQ31^2+(BA48+g/150)^2) -> 9.926570262
A49: 1.32 | B49: 4.334920245 | C49: -0.580839592 | D49: -0.7615277518 | E49: -0.8633600294 | F49: 50 | G49: 86.08228621 | H49: 0.04466361234 | I49: 34.62786981 | U49: 2.434734307 | V49: 0.4818664438 | W49: 13.15206154 | AV49: vy
A50: 1.35 | B50: 4.283373574 | C50: -0.5831602738 | D50: -0.7585092621 | E50: -0.856916804 | F50: 50 | G50: 85.73972242 | H50: 0.04538169613 | I50: 34.18325181 | U50: 2.513274123 | V50: =rx+Rcurvature*COS(U50) -> 0.147593438 | W50: =ry+Rcurvature*SIN(U50) -> 12.72803825 | AV50: 0 | AW50: =beta/25 -> 2
A51: 1.38 | B51: 4.232032853 | C51: -0.5855089959 | D51: -0.7554787122 | E51: -0.8506617138 | F51: 50 | G51: 85.39578444 | H51: 0.04611723776 | I51: 33.74145413 | U51: 2.591813939 | V51: -0.1523806321 | W51: 12.27909533 | AV51: x | AW51: y | AZ51: g
A52: 1.41 | B52: 4.180898911 | C52: -0.5878863275 | D52: -0.7524359562 | E52: -0.8445853513 | F52: 50 | G52: 85.05045561 | H52: 0.04687080777 | I52: 33.30247665 | U52: 2.670353756 | V52: -0.4162063266 | W52: 11.80800065 | AV52: =xcurrent -> 0.8025463196 | AW52: =ycurrent -> 3.87 | AZ52: =0 -> 0 | BA52: =-g/150 -> -6.54
A53: 1.44 | B53: 4.129972588 | C53: -0.5902928541 | D53: -0.7493808457 | E53: -0.8386789668 | F53: 50 | G53: 84.70371893 | H53: 0.04764300017 | I53: 32.86631926 | U53: 2.748893572 | V53: -0.6422570723 | W53: 11.31765868 | AV53: =AV52+AV50 -> 0.8025463196 | AW53: 5.87 | AZ53: x | BA53: y
A54: 1.47 | B54: 4.079254733 | C54: -0.5927291783 | D54: -0.7463132287 | E54: -0.83293441 | F54: 50 | G54: 84.35555702 | H54: 0.04843443367 | I54: 32.43298185 | U54: 2.827433388 | V54: -0.8291391911 | W54: 10.81109253 | AV54: =-1/20*AW50+18/20*AV50+AV52 -> 0.7025463196 | AW54: =1/20*AV50+18/20*AW50+AW52 -> 5.67 | AZ54: =AZ67 -> 7.46760987 | BA54: =BA67 -> 10.41
A55: 1.5 | B55: 4.028746208 | C55: -0.5951959202 | D55: -0.7432329506 | E55: -0.8273440778 | F55: 50 | G55: 84.00595217 | H55: 0.04924575285 | I55: 32.00246429 | U55: 2.905973205 | V55: -0.9757004928 | W55: 10.29142535 | AV55: =1/20*AW50+18/20*AV50+AV52 -> 0.9025463196 | AW55: =-1/20*AV50+18/20*AW50+AW52 -> 5.67 | AZ55: =AZ54+AZ52 -> 7.46760987 | BA55: =BA54+BA52 -> 3.87
A56: 1.53 | B56: 3.978447883 | C56: -0.5976937178 | D56: -0.7401398531 | E56: -0.821900867 | F56: 50 | G56: 83.65488629 | H56: 0.05007762956 | I56: 31.57476647 | U56: 2.984513021 | V56: -1.081037378 | W56: 9.76186107 | AV56: =AV53 -> 0.8025463196 | AW56: 5.87 | AZ56: =-1/20*BA52+18/20*AZ52+AZ54 -> 7.79460987 | BA56: =1/20*AZ52+18/20*BA52+BA54 -> 4.524
A57: 1.56 | B57: 3.92836064 | C57: -0.6002232285 | D57: -0.7370337749 | E57: -0.8165981332 | F57: 50 | G57: 83.3023409 | H57: 0.05093076421 | I57: 31.14988826 | U57: 3.063052837 | V57: -1.14450041 | W57: 9.22566462 | AZ57: =1/20*BA52+18/20*AZ52+AZ54 -> 7.14060987 | BA57: =-1/20*AZ52+18/20*BA52+BA54 -> 4.524
A58: 1.59 | B58: 3.878485373 | C58: -0.602785129 | D58: -0.7339145511 | E58: -0.8114296521 | F58: 50 | G58: 82.94829715 | H58: 0.05180588735 | I58: 30.72782952 | U58: 3.141592654 | V58: -1.165698318 | W58: 8.686141832 | AZ58: =AZ55 -> 7.46760987 | BA58: 3.87
A59: 1.62 | B59: 3.828822987 | C59: -0.6053801166 | D59: -0.7307820136 | E59: -0.8063895863 | F59: 50 | G59: 82.59273576 | H59: 0.05270376115 | I59: 30.30859013 | U59: 3.22013247 | V59: -1.14450041 | W59: 8.146619044
A60: 1.65 | B60: 3.779374398 | C60: -0.6080089095 | D60: -0.7276359902 | E60: -0.8014724544 | F60: 50 | G60: 82.23563704 | H60: 0.05362518109 | I60: 29.89216994 | U60: 3.298672286 | V60: -1.081037378 | W60: 7.610422594 | AZ60: acceleration from Reaction Force
A61: 1.68 | B61: 3.730140534 | C61: -0.6106722482 | D61: -0.7244763053 | E61: -0.7966731031 | F61: 50 | G61: 81.87698089 | H61: 0.05457097775 | I61: 29.47856881 | U61: 3.377212103 | V61: -0.9757004928 | W61: 7.08085831 | AZ61: =GNY*nx/150 -> 3.269413431 | BA61: =GNY*ny/150 -> 3.208066011
A62: 1.71 | B62: 3.681122336 | C62: -0.6133708961 | D62: -0.7213027793 | E62: -0.7919866823 | F62: 50 | G62: 81.51674675 | H62: 0.05554201863 | I62: 29.06778659 | U62: 3.455751919 | V62: -0.8291391911 | W62: 6.561191134 | AZ62: x | BA62: y
A63: 1.74 | B63: 3.632320758 | C63: -0.6161056403 | D63: -0.7181152289 | E63: -0.7874086223 | F63: 50 | G63: 81.15491359 | H63: 0.05653921018 | I63: 28.65982314 | U63: 3.534291735 | V63: -0.6422570723 | W63: 6.054624984 | AZ63: =AZ46 -> 4.198196439 | BA63: =BA46 -> 7.201933989
A64: 1.77 | B64: 3.583736764 | C64: -0.6188772927 | D64: -0.7149134663 | E64: -0.7829346131 | F64: 50 | G64: 80.79145994 | H64: 0.05756349991 | I64: 28.25467828 | U64: 3.612831552 | V64: -0.4162063266 | W64: 5.564283012 | AZ64: =AZ63+AZ61 -> 7.46760987 | BA64: =BA63+BA61 -> 10.41
A65: 1.8 | B65: 3.535371334 | C65: -0.621686691 | D65: -0.7116972997 | E65: -0.7785605854 | F65: 50 | G65: 80.42636384 | H65: 0.05861587861 | I65: 27.85235187 | U65: 3.691371368 | V65: -0.1523806321 | W65: 5.093188337 | AZ65: =-1/20*BA61+18/20*AZ61+AZ63 -> 6.980265226 | BA65: =1/20*AZ61+18/20*BA61+BA63 -> 10.25266407
A66: 1.83 | B66: 3.48722546 | C66: -0.6245346998 | D66: -0.7084665331 | E66: -0.7742826937 | F66: 50 | G66: 80.0596028 | H66: 0.05969738281 | I66: 27.45284373 | U66: 3.769911184 | V66: 0.147593438 | W66: 4.644245415 | AZ66: =1/20*BA61+18/20*AZ61+AZ63 -> 7.301071827 | BA66: =-1/20*AZ61+18/20*BA61+BA63 -> 9.925722727
A67: 1.86 | B67: 3.439300149 | C67: -0.6274222118 | D67: -0.7052209656 | E67: -0.7700973001 | F67: 50 | G67: 79.69115384 | H67: 0.06080909727 | I67: 27.0561537 | U67: 3.848451001 | V67: 0.4818664438 | W67: 4.220222128 | AZ67: =AZ64 -> 7.46760987 | BA67: 10.41
A68: 1.89 | B68: 3.391596418 | C68: -0.6303501486 | D68: -0.7019603921 | E68: -0.7660009604 | F68: 50 | G68: 79.32099344 | H68: 0.06195215771 | I68: 26.66228158 | U68: 3.926990817 | V68: 0.8483774811 | W68: 3.823732722
A69: 1.92 | B69: 3.344115303 | C69: =-beta/(SQRT(alfa^2-stath*A69)) -> -0.6333194624 | D69: -0.6986846024 | E69: =-((3*beta*981)^(2/3))/(3*981*(A69)^(1/3)) -> -0.7619904107 | F69: =SQRT(alfa^2+beta^2-stath*B69-(alfa^2-stath*B69)) -> 50 | G69: =SQRT((alfa^2-stath*A69)) -> 78.94909752 | H69: =g*beta^2/(alfa^2-2*g*A69)^2 -> 0.06312775377 | I69: 26.2712272 | U69: 4.005530633 | V69: 1.244866888 | W69: 3.457221684
A70: =A69+dt*beta -> 1.95 | B70: =(SQRT(alfa^2-2*g*A70))^3/(3*g*beta) -> 3.296857853 | C70: -0.636331137 | D70: =(B70-B69)/deltax -> -0.6953933816 | E70: -0.7580625553 | F70: 50 | G70: 78.57544146 | H70: 0.06433713203 | I70: =(1+(C70)^2)^1.5/H70 -> 25.88299036 | U70: 4.08407045 | V70: 1.668890174 | W70: 3.122948679
A71: 1.98 | B71: 3.249825131 | C71: -0.6393861893 | D71: -0.6920865093 | E71: -0.7542144557 | F71: 50 | G71: 78.2 | H71: 0.06558159937 | I71: 25.49757087 | U71: 4.162610266 | V71: 2.117833096 | W71: 2.822974608
A72: 2.01 | B72: 3.203018215 | C72: -0.6424856706 | D72: -0.6887637603 | E72: -0.7504433204 | F72: 50 | G72: 77.82274732 | H72: 0.06686252647 | I72: 25.11496852 | U72: 4.241150082 | V72: 2.588927771 | W72: 2.559148914
A73: 2.04 | B73: 3.156438202 | C73: -0.6456306685 | D73: -0.6854249036 | E73: -0.7467464954 | F73: 50 | G73: 77.44365694 | H73: 0.0681813516 | I73: 24.7351831 | U73: 4.319689899 | V73: 3.079269744 | W73: 2.333098168
A74: 2.07 | B74: 3.1100862 | C74: -0.6488223079 | D74: -0.6820697026 | E74: -0.7431214553 | F74: 50 | G74: 77.06270174 | H74: 0.06953958467 | I74: 24.35821439 | U74: 4.398229715 | V74: 3.585835893 | W74: 2.146216049
A75: 2.1 | B75: 3.063963338 | C75: -0.6520617533 | D75: -0.6786979149 | E75: -0.7395657958 | F75: 50 | G75: 76.67985394 | H75: 0.07093881153 | I75: 23.98406216 | U75: 4.476769531 | V75: 4.10550307 | W75: 1.999654748
A76: 2.13 | B76: 3.01807076 | C76: -0.65535021 | D76: -0.6753092922 | E76: -0.7360772261 | F76: 50 | G76: 76.29508503 | H76: 0.0723806986 | I76: 23.61272618 | U76: 4.555309348 | V76: 4.635067353 | W76: 1.894317862
A77: 2.16 | B77: 2.972409626 | C77: -0.6586889267 | D77: -0.6719035796 | E77: -0.7326535616 | F77: 50 | G77: 75.90836581 | H77: 0.07386699788 | I77: 23.24420621 | U77: 4.633849164 | V77: 5.171263804 | W77: 1.83085483
A78: 2.19 | B78: 2.926981117 | C78: -0.6620791966 | D78: -0.668480516 | E78: -0.7292927182 | F78: 50 | G78: 75.51966631 | H78: 0.07539955221 | I78: 22.87850198 | U78: 4.71238898 | V78: 5.710786592 | W78: 1.809656922
A79: 2.22 | B79: 2.881786429 | C79: -0.6655223604 | D79: -0.6650398334 | E79: -0.725992706 | F79: 50 | G79: 75.1289558 | H79: 0.07698030104 | I79: 22.51561324 | U79: 4.790928797 | V79: 6.250309379 | W79: 1.83085483
A80: 2.25 | B80: 2.836826778 | C80: -0.6690198079 | D80: -0.661581257 | E80: -0.7227516239 | F80: 50 | G80: 74.73620274 | H80: 0.07861128651 | I80: 22.15553972 | U80: 4.869468613 | V80: 6.78650583 | W80: 1.894317862
A81: 2.28 | B81: 2.7921034 | C81: -0.6725729806 | D81: -0.6581045046 | E81: -0.7195676548 | F81: 50 | G81: 74.34137475 | H81: 0.08029466012 | I81: 21.79828114 | U81: 4.948008429 | V81: 7.316070114 | W81: 1.999654748
A82: 2.31 | B82: 2.74761755 | C82: -0.6761833742 | D82: -0.6546092866 | E82: -0.7164390603 | F82: 50 | G82: 73.9444386 | H82: 0.08203268977 | I82: 21.44383719 | U82: 5.026548246 | V82: =rx+Rcurvature*COS(U82) -> 7.83573729 | W82: =ry+Rcurvature*SIN(U82) -> 2.146216049
A83: 2.34 | B83: 2.703370502 | C83: -0.6798525413 | D83: -0.6510953056 | E83: -0.7133641767 | F83: 50 | G83: 73.54536015 | H83: 0.08382776743 | I83: 21.09220758 | U83: 5.105088062 | V83: 8.34230344 | W83: 2.333098168
A84: 2.37 | B84: 2.659363553 | C84: -0.6835820939 | D84: -0.6475622561 | E84: -0.7103414108 | F84: 50 | G84: 73.14410434 | H84: 0.08568241738 | I84: 20.743392 | U84: =U83+PI()/40 -> 5.183627878 | V84: 8.832645412 | W84: 2.559148914
A85: 2.4 | B85: 2.61559802 | C85: -0.6873737067 | D85: -0.6440098244 | E85: -0.7073692363 | F85: 50 | G85: 72.74063514 | H85: 0.08759930507 | I85: 20.39739011 | U85: 5.262167695 | V85: 9.303740087 | W85: 2.822974608
A86: 2.43 | B86: 2.572075241 | C86: -0.6912291202 | D86: -0.6404376879 | E86: -0.7044461896 | F86: 50 | G86: 72.3349155 | H86: 0.08958124671 | I86: 20.05420156 | U86: 5.340707511 | V86: 9.752683009 | W86: 3.122948679
A87: 2.46 | B87: 2.528796579 | C87: -0.695150144 | D87: -0.636845515 | E87: -0.701570867 | F87: 50 | G87: 71.92690734 | H87: 0.09163121961 | I87: 19.71382602 | U87: 5.419247327 | V87: 10.1767063 | W87: 3.457221684
A88: 2.49 | B88: 2.485763418 | C88: -0.6991386604 | D88: -0.6332329646 | E88: -0.6987419215 | F88: 50 | G88: 71.51657151 | H88: 0.0937523734 | I88: 19.3762631 | U88: 5.497787144 | V88: 10.5731957 | W88: 3.823732722
A89: 2.52 | B89: 2.442977167 | C89: -0.7031966281 | D89: -0.6295996862 | E89: -0.6959580596 | F89: 50 | G89: 71.10386769 | H89: 0.09594804209 | I89: 19.04151243 | U89: 5.57632696 | V89: 10.93970674 | W89: 4.220222128
A90: 2.55 | B90: 2.400439259 | C90: -0.7073260863 | D90: -0.6259453185 | E90: -0.6932180389 | F90: 50 | G90: 70.68875441 | H90: 0.09822175722 | I90: 18.7095736 | U90: 5.654866776 | V90: 11.27397975 | W90: 4.644245415
A91: 2.58 | B91: 2.358151152 | C91: -0.7115291591 | D91: -0.6222694903 | E91: -0.6905206652 | F91: 50 | G91: 70.27118898 | H91: 0.1005772621 | I91: 18.3804462 | U91: 5.733406593 | V91: 11.57395382 | W91: 5.093188337
A92: 2.61 | B92: 2.316114331 | C92: -0.71580806 | D92: -0.6185718187 | E92: -0.6878647902 | F92: 50 | G92: 69.85112741 | H92: 0.103018527 | I92: 18.05412979 | U92: 5.811946409 | V92: 11.83777951 | W92: 5.564283012
A93: 2.64 | B93: 2.274330307 | C93: -0.7201650969 | D93: -0.6148519097 | E93: -0.6852493095 | F93: 50 | G93: 69.4285244 | H93: 0.1055497662 | I93: 17.73062392 | U93: 5.890486225 | V93: 12.06383026 | W93: 6.054624984
A94: 2.67 | B94: 2.232800619 | C94: -0.724602677 | D94: -0.6111093573 | E94: -0.6826731599 | F94: 50 | G94: 69.00333325 | H94: 0.1081754562 | I94: 17.40992812 | U94: 5.969026042 | V94: 12.25071237 | W94: 6.561191134
A95: 2.7 | B95: 2.191526835 | C95: -0.729123313 | D95: -0.6073437428 | E95: -0.6801353181 | F95: 50 | G95: 68.57550583 | H95: 0.1109003552 | I95: 17.0920419 | U95: 6.047565858 | V95: 12.39727368 | W95: 7.08085831
A96: 2.73 | B96: 2.15051055 | C96: -0.7337296283 | D96: -0.6035546346 | E96: -0.677634798 | F96: 50 | G96: 68.14499248 | H96: 0.1137295247 | I96: 16.77696473 | U96: 6.126105675 | V96: 12.50261056 | W96: 7.610422594
A97: 2.76 | B97: 2.109753391 | C97: -0.7384243641 | D97: -0.5997415873 | E97: -0.6751706497 | F97: 50 | G97: 67.71174197 | H97: 0.1166683536 | I97: 16.46469609 | U97: 6.204645491 | V97: 12.56607359 | W97: 8.146619044
A98: 2.79 | B98: 2.069257017 | C98: -0.7432103858 | D98: -0.5959041414 | E98: -0.6727419573 | F98: 50 | G98: 67.27570141 | H98: 0.1197225831 | I98: 16.15523541 | U98: 6.283185307 | V98: 12.5872715 | W98: 8.686141832
A99: 2.82 | B99: 2.029023118 | C99: -0.7480906908 | D99: -0.5920418224 | E99: -0.6703478376 | F99: 50 | G99: 66.8368162 | H99: 0.1228983353 | I99: 15.84858211
A100: 2.85 | B100: 1.989053418 | C100: -0.7530684157 | D100: -0.5881541404 | E100: -0.6679874383 | F100: 50 | G100: 66.39502993 | H100: 0.1262021437 | I100: 15.54473556
A101: 2.88 | B101: 1.949349674 | C101: =-beta/(SQRT(alfa^2-stath*A101)) -> -0.7581468454 | D101: -0.584240589 | E101: =-((3*beta*981)^(2/3))/(3*981*(A101)^(1/3)) -> -0.6656599371 | F101: =SQRT(alfa^2+beta^2-stath*B101-(alfa^2-stath*B101)) -> 50 | G101: =SQRT((alfa^2-stath*A101)) -> 65.95028431 | H101: =g*beta^2/(alfa^2-2*g*A101)^2 -> 0.1296409867 | I101: 15.24369513
A102: =A101+dt*beta -> 2.91 | B102: =(SQRT(alfa^2-2*g*A102))^3/(3*g*beta) -> 1.909913681 | C102: -0.7633294221 | D102: =(B102-B101)/deltax -> -0.5803006447 | E102: -0.6633645398 | F102: 50 | G102: 65.50251904 | H102: 0.1332223248 | I102: 14.94546015
A103: 2.94 | B103: 1.870747268 | C103: -0.7686197547 | D103: -0.5763337663 | E103: -0.6611004793 | F103: 50 | G103: 65.05167177 | H103: 0.1369541409 | I103: 14.65002991
A104: 2.97 | B104: 1.831852304 | C104: -0.77402163 | D104: -0.5723393938 | E104: -0.6588670148 | F104: 50 | G104: 64.59767798 | H104: 0.1408449848 | I104: 14.35740367
A105: 3 | B105: 1.793230697 | C105: -0.7795390234 | D105: -0.5683169473 | E105: -0.6566634297 | F105: 50 | G105: 64.14047084 | H105: 0.1449040224 | I105: 14.06758064
A106: 3.03 | B106: 1.754884395 | C106: -0.7851761117 | D106: -0.5642658265 | E106: -0.6544890315 | F106: 50 | G106: 63.67998116 | H106: 0.1491410894 | I106: 13.78056003
A107: 3.06 | B107: 1.71681539 | C107: -0.7909372864 | D107: -0.5601854093 | E107: -0.6523431505 | F107: 50 | G107: 63.21613718 | H107: 0.1535667513 | I107: 13.49634097
A108: 3.09 | B108: 1.679025717 | C108: -0.7968271677 | D108: -0.5560750507 | E108: -0.6502251383 | F108: 50 | G108: 62.74886453 | H108: 0.1581923691 | I108: 13.21492257
A109: 3.12 | B109: 1.641517454 | C109: -0.8028506202 | D109: -0.5519340818 | E109: -0.6481343678 | F109: 50 | G109: 62.27808603 | H109: 0.1630301723 | I109: 12.93630388
A110: 3.15 | B110: 1.60429273 | C110: -0.8090127703 | D110: -0.5477618082 | E110: -0.6460702316 | F110: 50 | G110: 61.80372157 | H110: 0.16809334 | I110: 12.66048389
A111: 3.18 | B111: 1.567353722 | C111: -0.8153190235 | D111: -0.5435575092 | E111: -0.6440321417 | F111: 50 | G111: 61.32568793 | H111: 0.1733960905 | I111: 12.38746158
A112: 3.21 | B112: 1.530702656 | C112: -0.8217750856 | D112: -0.5393204357 | E112: -0.6420195281 | F112: 50 | G112: 60.84389863 | H112: 0.1789537814 | I112: 12.11723582
A113: 3.24 | B113: 1.494341813 | C113: -0.8283869832 | D113: -0.535049809 | E113: -0.6400318388 | F113: 50 | G113: 60.35826373 | H113: 0.1847830209 | I113: 11.84980546
A114: 3.27 | B114: 1.458273527 | C114: -0.8351610883 | D114: -0.5307448192 | E114: -0.6380685386 | F114: 50 | G114: 59.86868965 | H114: 0.1909017919 | I114: 11.58516927
A115: 3.3 | B115: 1.422500192 | C115: -0.8421041435 | D115: -0.5264046232 | E115: -0.6361291086 | F115: 50 | G115: 59.37507895 | H115: 0.197329591 | I115: 11.32332594
A116: 3.33 | B116: 1.38702426 | C116: -0.8492232904 | D116: -0.5220283427 | E116: -0.6342130455 | F116: 50 | G116: 58.8773301 | H116: 0.2040875839 | I116: 11.06427411
A117: 3.36 | B117: 1.351848245 | C117: -0.8565261007 | D117: -0.5176150626 | E117: -0.6323198609 | F117: 50 | G117: 58.37533726 | H117: 0.2111987801 | I117: 10.80801232
A118: 3.39 | B118: 1.316974726 | C118: -0.8640206098 | D118: -0.5131638281 | E118: -0.6304490812 | F118: 50 | G118: 57.86898997 | H118: 0.2186882285 | I118: 10.55453903
A119: 3.42 | B119: 1.282406351 | C119: -0.8717153539 | D119: -0.5086736428 | E119: -0.6286002463 | F119: 50 | G119: 57.35817291 | H119: 0.2265832389 | I119: 10.30385261
A120: 3.45 | B120: 1.248145837 | C120: -0.8796194112 | D120: -0.5041434659 | E120: -0.6267729097 | F120: 50 | G120: 56.84276559 | H120: 0.2349136309 | I120: 10.05595134
A121: 3.48 | B121: 1.214195976 | C121: -0.8877424467 | D121: -0.4995722094 | E121: -0.6249666377 | F121: 50 | G121: 56.32264198 | H121: 0.2437120159 | I121: 9.810833372
A122: 3.51 | B122: 1.180559636 | C122: -0.896094762 | D122: -0.4949587351 | E122: -0.623181009 | F122: 50 | G122: 55.7976702 | H122: 0.2530141171 | I122: 9.568496757
A123: 3.54 | B123: 1.147239769 | C123: -0.9046873501 | D123: -0.4903018512 | E123: -0.6214156142 | F123: 50 | G123: 55.26771209 | H123: 0.2628591322 | I123: 9.328939418
A124: 3.57 | B124: 1.114239408 | C124: -0.9135319564 | D124: -0.4856003086 | E124: -0.6196700556 | F124: 50 | G124: 54.73262281 | H124: 0.2732901475 | I124: 9.092159144
A125: 3.6 | B125: 1.081561678 | C125: -0.9226411463 | D125: -0.4808527974 | E125: -0.6179439462 | F125: 50 | G125: 54.19225037 | H125: 0.2843546097 | I125: 8.858153576
A126: 3.63 | B126: 1.049209796 | C126: -0.9320283798 | D126: -0.4760579422 | E126: -0.61623691 | F126: 50 | G126: 53.64643511 | H126: 0.2961048666 | I126: 8.626920196
A127: 3.66 | B127: 1.017187078 | C127: -0.9417080959 | D127: -0.4712142976 | E127: -0.6145485812 | F127: 50 | G127: 53.09500918 | H127: 0.3085987873 | I127: 8.398456315
A128: 3.69 | B128: 0.9854969422 | C128: -0.9516958054 | D128: -0.4663203433 | E128: -0.612878604 | F128: 50 | G128: 52.53779592 | H128: 0.3219004763 | I128: 8.172759054
A129: 3.72 | B129: 0.9541429172 | C129: -0.9620081956 | D129: -0.4613744781 | E129: -0.6112266321 | F129: 50 | G129: 51.97460919 | H129: 0.3360810972 | I129: 7.949825329
A130: 3.75 | B130: 0.9231286451 | C130: -0.9726632479 | D130: -0.4563750142 | E130: -0.6095923285 | F130: 50 | G130: 51.40525265 | H130: 0.3512198266 | I130: 7.729651834
A131: 3.78 | B131: 0.8924578894 | C131: -0.9836803692 | D131: -0.4513201703 | E131: -0.6079753652 | F131: 50 | G131: 50.82951898 | H131: 0.3674049614 | I131: 7.512235016
A132: 3.81 | B132: 0.8621345415 | C132: -0.9950805412 | D132: -0.4462080641 | E132: -0.6063754226 | F132: 50 | G132: 50.24718898 | H132: 0.3847352098 | I132: 7.297571054
A133: 3.84 | B133: 0.8321626282 | C133: =-beta/(SQRT(alfa^2-stath*A133)) -> -1.006886488 | D133: -0.4410367042 | E133: =-((3*beta*981)^(2/3))/(3*981*(A133)^(1/3)) -> -0.6047921897 | F133: =SQRT(alfa^2+beta^2-stath*B133-(alfa^2-stath*B133)) -> 50 | G133: =SQRT((alfa^2-stath*A133)) -> 49.65803057 | H133: =g*beta^2/(alfa^2-2*g*A133)^2 -> 0.4033211994 | I133: 7.085655832
A134: =A133+dt*beta -> 3.87 | B134: =(SQRT(alfa^2-2*g*A134))^3/(3*g*beta) -> 0.8025463196 | C134: -1.019122867 | D134: =(B134-B133)/deltax -> -0.4358039811 | E134: -0.6032253636 | F134: 50 | G134: 49.06179777 | H134: 0.4232872472 | I134: =(1+(C134)^2)^1.5/H134 -> 6.87648491
A135: 3.9 | B135: 0.7732899379 | C135: -1.031816486 | D135: -0.430507657 | E135: -0.6016746489 | F135: 50 | G135: 48.45822944 | H135: 0.4447734436 | I135: 6.670053489
A136: 3.93 | B136: 0.7443979668 | C136: -1.044996549 | D136: -0.4251453547 | E136: -0.6001397579 | F136: 50 | G136: 47.84704798 | H136: 0.467938117 | I136: 6.466356375
A137: 3.96 | B137: 0.7158750619 | C137: -1.058694941 | D137: -0.4197145451 | E137: -0.5986204102 | F137: 50 | G137: 47.22795782 | H137: 0.4929607585 | I137: 6.265387938
A138: 3.99 | B138: 0.687726062 | C138: -1.072946551 | D138: -0.4142125333 | E138: -0.5971163325 | F138: 50 | G138: 46.60064377 | H138: 0.5200455094 | I138: 6.06714206
A139: 4.02 | B139: 0.6599560014 | C139: -1.087789648 | D139: -0.4086364429 | E139: -0.5956272582 | F139: 50 | G139: 45.96476912 | H139: 0.5494253381 | I139: 5.871612082
A140: 4.05 | B140: 0.6325701231 | C140: -1.103266311 | D140: -0.4029831984 | E140: -0.5941529272 | F140: 50 | G140: 45.31997352 | H140: 0.5813670667 | I140: 5.678790745
A141: 4.08 | B141: 0.6055738944 | C141: -1.119422935 | D141: -0.3972495055 | E141: -0.5926930861 | F141: 50 | G141: 44.66587064 | H141: 0.6161774504 | I141: 5.488670111
A142: 4.11 | B142: 0.5789730226 | C142: -1.136310813 | D142: -0.3914318285 | E142: -0.5912474875 | F142: 50 | G142: 44.00204541 | H142: 0.6542105699 | I142: 5.301241488
A143: 4.14 | B143: 0.5527734735 | C143: -1.153986826 | D143: -0.3855263648 | E143: -0.5898158899 | F143: 50 | G143: 43.32805096 | H143: 0.6958768713 | I143: 5.116495331
A144: 4.17 | B144: 0.5269814915 | C144: -1.172514246 | D144: -0.3795290159 | E144: -0.5883980578 | F144: 50 | G144: 42.64340512 | H144: 0.7416542864 | I144: 4.934421134
A145: 4.2 | B145: 0.5016036217 | C145: -1.191963695 | D145: -0.3734353541 | E145: -0.5869937612 | F145: 50 | G145: 41.94758634 | H145: 0.7921019993 | I145: 4.755007301
A146: 4.23 | B146: 0.4766467352 | C146: -1.212414275 | D146: -0.3672405841 | E146: -0.5856027755 | F146: 50 | G146: 41.2400291 | H146: 0.847877604 | I146: 4.578241
A147: 4.26 | B147: 0.4521180571 | C147: -1.233954932 | D147: -0.3609394991 | E147: -0.5842248815 | F147: 50 | G147: 40.52011846 | H147: 0.909758644 | I147: 4.404107981
A148: 4.29 | B148: 0.4280251974 | C148: -1.256686077 | D148: -0.3545264293 | E148: -0.5828598651 | F148: 50 | G148: 39.78718387 | H148: 0.9786698574 | I148: 4.23259238
A149: 4.32 | B149: 0.4043761874 | C149: -1.280721571 | D149: -0.3479951822 | E149: -0.5815075172 | F149: 50 | G149: 39.0404918 | H149: 1.055717927 | I149: 4.063676465
A150: 4.35 | B150: 0.3811795192 | C150: -1.306191128 | D150: -0.3413389725 | E150: -0.5801676334 | F150: 50 | G150: 38.27923719 | H150: 1.142236192 | I150: 3.897340349
A151: 4.38 | B151: 0.3584441921 | C151: -1.333243268 | D151: -0.3345503396 | E151: -0.578840014 | F151: 50 | G151: 37.50253325 | H151: 1.239842722 | I151: 3.733561642
A152: 4.41 | B152: 0.3361797646 | C152: -1.362048982 | D152: -0.3276210497 | E152: -0.577524464 | F152: 50 | G152: 36.70939934 | H152: 1.350516524 | I152: 3.572315025
A153: 4.44 | B153: 0.3143964158 | C153: -1.392806292 | D153: -0.320541978 | E153: -0.5762207926 | F153: 50 | G153: 35.8987465 | H153: 1.476698654 | I153: 3.413571736
A154: 4.47 | B154: 0.2931050146 | C154: -1.425746014 | D154: -0.3133029685 | E154: -0.5749288134 | F154: 50 | G154: 35.06935985 | H154: 1.621427978 | I154: 3.257298945
A155: 4.5 | B155: 0.272317202 | C155: -1.46113908 | D155: -0.3058926623 | E155: -0.5736483441 | F155: 50 | G155: 34.21987726 | H155: 1.788525868 | I155: 3.103458971
A156: 4.53 | B156: 0.2520454868 | C156: -1.499305982 | D156: -0.2982982888 | E156: -0.5723792064 | F156: 50 | G156: 33.3487631 | H156: 1.98285106 | I156: 2.952008313
A157: 4.56 | B157: 0.2323033593 | C157: -1.54062906 | D157: -0.2905054062 | E157: -0.5711212261 | F157: 50 | G157: 32.45427553 | H157: 2.210656882 | I157: 2.802896427
A158: 4.59 | B158: 0.2131054267 | C158: -1.585568755 | D158: -0.2824975789 | E158: -0.5698742325 | F158: 50 | G158: 31.53442563 | H158: 2.480100702 | I158: 2.656064166
A159: 4.62 | B159: 0.1944675762 | C159: -1.634685392 | D159: -0.2742559694 | E159: -0.568638059 | F159: 50 | G159: 30.58692531 | H159: 2.801984481 | I159: 2.511441769
A160: 4.65 | B160: 0.1764071743 | C160: -1.688668884 | D160: -0.265758815 | E160: -0.5674125421 | F160: 50 | G160: 29.60912022 | H160: 3.190854513 | I160: 2.368946234
A161: 4.68 | B161: 0.1589433108 | C161: -1.748380002 | D161: -0.2569807505 | E161: -0.5661975222 | F161: 50 | G161: 28.59790202 | H161: 3.666674181 | I161: 2.22847782
A162: 4.71 | B162: 0.1420971055 | C162: -1.814908934 | D162: -0.2478919119 | E162: -0.564992843 | F162: 50 | G162: 27.54959165 | H162: 4.257438197 | I162: 2.089915335
A163: 4.74 | B163: 0.1258920947 | C163: -1.889660401 | D163: -0.2384567335 | E163: -0.5637983514 | F163: 50 | G163: 26.4597808 | H163: 5.003386447
A164: 4.77 | B164: 0.1103547318 | C164: -1.974480864 | D164: -0.228632295 | E164: -0.5626138976 | F164: 50 | G164: 25.32311197 | H164: 5.964042295
A165: 4.8 | B165: 0.09551504465 | C165: =-beta/(SQRT(alfa^2-stath*A165)) -> -2.071854825 | D165: -0.2183659964 | E165: -0.5614393349 | F165: 50 | G165: =SQRT((alfa^2-stath*A165)) -> 24.13296501 | H165: =g*beta^2/(alfa^2-2*g*A165)^2 -> 7.23046592
A166: =A165+dt*beta -> 4.83 | B166: =(SQRT(alfa^2-2*g*A166))^3/(3*g*beta) -> 0.08140752224 | C166: -2.185219513 | D166: =(B166-B165)/deltax -> -0.2075921922 | E166: -0.5602745197 | F166: 50 | G166: 22.88099648 | H166: 8.947655996
A167: 4.86 | B167: 0.06807234388 | C167: -2.319492721 | D167: -0.1962271496 | E167: -0.5591193112 | F167: 50 | G167: 21.55643755 | H167: 11.35797883
A168: 4.89 | B168: 0.05555714289 | C168: -2.482008595 | D168: -0.1841611827 | E168: -0.5579735717 | F168: 50 | G168: 20.14497456 | H168: 14.89162609
A169: 4.92 | B169: 0.04391964765 | C169: -2.684295354 | D169: -0.1712457424 | E169: -0.5568371662 | F169: 50 | G169: 18.62686232 | H169: 20.37277542
A170: 4.95 | B170: 0.03323185781 | C170: -2.945766881 | D170: -0.1572708275 | G170: 16.97350877 | H170: 29.54761962
A171: 4.98 | B171: 0.02358714263 | C171: -3.30236296 | D171: -0.1419219839 | G171: 15.1406737 | H171: 46.66897006
A172: 5.01 | B172: 0.01511359062 | C172: -3.830546135 | D172: -0.1246883178 | G172: 13.05296901 | H172: 84.48347872
A173: 5.04 | B173: 0.008003295912 | C173: -4.734712619 | D173: -0.1046279867 | G173: 10.56030303 | H173: 197.1984489
A174: 5.07 | B174: 0.002596934618 | C174: -6.890164283 | D174: -0.07955460644 | G174: 7.256721023 | H174: 884.3970932
A175: 5.1 | H175: 63800.72841
A176: 5.13 | H176: 579.4032116
A177: 5.16
A178: 5.19
A179: 5.22
A180: 5.25
A181: 5.28
A182: 5.31
A183: 5.34
A184: 5.37
A185: 5.4
A186: 5.43
A187: 5.46
A188: 5.49
A189: 5.52
A190: 5.55
A191: 5.58
A192: 5.61
A193: 5.64
A194: 5.67
A195: 5.7
A196: 5.73
A197: 5.76
A198: 5.79 | B198: =(SQRT(alfa^2-2*g*A198))^3/(3*g*beta) -> 

Sheet time evolution
A40: =IF(0<ycurrent,0,ycurrent) -> 0 | B40: =xmiden -> 6.795786612 | C40: =-beta/(SQRT(alfa^2-stath*A40)) -> -0.5
A41: =IF(A40+dt*beta<ycurrent,A40+dt*beta,ycurrent) -> 0.03 | B41: =(SQRT(alfa^2-2*g*A41))^3/(3*g*beta) -> 6.735874989 | C41: -0.501478028
A42: 0.06 | B42: 6.676140468 | C42: -0.5029692413
A43: 0.09 | B43: 6.616583576 | C43: -0.5044738372
A44: 0.12 | B44: 6.557204845 | C44: -0.5059920171
A45: 0.15 | B45: 6.49800481 | C45: -0.5075239866
A46: 0.18 | B46: 6.438984013 | C46: -0.5090699557
A47: 0.21 | B47: 6.380142999 | C47: -0.510630139
A48: 0.24 | B48: 6.32148232 | C48: -0.5122047555 | K48: =xcurrent -> 0.8025463196 | L48: =ycurrent -> 3.87
A49: 0.27 | B49: 6.263002531 | C49: -0.5137940293 | K49: =K48 -> 0.8025463196 | L49: =L48 -> 3.87
A50: 0.3 | B50: 6.204704195 | C50: -0.5153981891
A51: 0.33 | B51: 6.146587877 | C51: -0.5170174689 | K51: =xcurrent -> 0.8025463196 | L51: =ycurrent -> 3.87
A52: 0.36 | B52: 6.088654149 | C52: -0.5186521075 | K52: =XCM -> 5.710786592 | L52: =YCM -> 8.686141832
A53: 0.39 | B53: 6.030903589 | C53: -0.5203023494
A54: 0.42 | B54: 5.973336779 | C54: -0.5219684443
A55: 0.45 | B55: 5.915954308 | C55: -0.5236506478
A56: 0.48 | B56: 5.85875677 | C56: -0.5253492211
A57: 0.51 | B57: 5.801744765 | C57: -0.5270644314
A58: 0.54 | B58: 5.744918899 | C58: -0.5287965522
A59: 0.57 | B59: 5.688279783 | C59: -0.530545863
A60: 0.6 | B60: 5.631828035 | C60: -0.5323126501
A61: 0.63 | B61: 5.575564278 | C61: -0.5340972066
A62: 0.66 | B62: 5.519489145 | C62: -0.5358998321
A63: 0.69 | B63: 5.46360327 | C63: -0.5377208339
A64: 0.72 | B64: 5.407907297 | C64: -0.5395605261
A65: 0.75 | B65: 5.352401876 | C65: -0.5414192307
A66: 0.78 | B66: 5.297087663 | C66: -0.5432972775
A67: 0.81 | B67: 5.241965322 | C67: -0.5451950043
A68: 0.84 | B68: 5.187035522 | C68: -0.5471127572
A69: 0.87 | B69: 5.132298941 | C69: -0.5490508909
A70: 0.9 | B70: 5.077756264 | C70: -0.551009769
A71: 0.93 | B71: 5.023408182 | C71: -0.5529897642
A72: 0.96 | B72: 4.969255394 | C72: =-beta/(SQRT(alfa^2-stath*A72)) -> -0.5549912587
A73: 0.99 | B73: 4.915298608 | C73: -0.5570146444
A74: 1.02 | B74: 4.861538537 | C74: -0.5590603232
A75: 1.05 | B75: 4.807975906 | C75: -0.5611287076
A76: 1.08 | B76: 4.754611443 | C76: -0.5632202207
A77: 1.11 | B77: 4.701445887 | C77: -0.5653352968
A78: 1.14 | B78: 4.648479986 | C78: -0.5674743817
A79: 1.17 | B79: 4.595714495 | C79: -0.5696379331
A80: 1.2 | B80: 4.543150178 | C80: -0.5718264209
A81: 1.23 | B81: 4.490787808 | C81: -0.574040328
A82: 1.26 | B82: 4.438628167 | C82: -0.5762801501
A83: 1.29 | B83: 4.386672046 | C83: -0.5785463968
A84: 1.32 | B84: 4.334920245 | C84: -0.580839592
A85: 1.35 | B85: 4.283373574 | C85: -0.5831602738
A86: 1.38 | B86: 4.232032853 | C86: -0.5855089959
A87: 1.41 | B87: 4.180898911 | C87: -0.5878863275
A88: 1.44 | B88: 4.129972588 | C88: -0.5902928541
A89: 1.47 | B89: 4.079254733 | C89: -0.5927291783
A90: 1.5 | B90: 4.028746208 | C90: -0.5951959202
A91: 1.53 | B91: 3.978447883 | C91: -0.5976937178
A92: 1.56 | B92: 3.92836064 | C92: -0.6002232285
A93: 1.59 | B93: 3.878485373 | C93: -0.602785129
A94: 1.62 | B94: 3.828822987 | C94: -0.6053801166
A95: 1.65 | B95: 3.779374398 | C95: -0.6080089095
A96: 1.68 | B96: 3.730140534 | C96: -0.6106722482
A97: 1.71 | B97: 3.681122336 | C97: -0.6133708961
A98: 1.74 | B98: 3.632320758 | C98: -0.6161056403
A99: 1.77 | B99: 3.583736764 | C99: -0.6188772927
A100: 1.8 | B100: 3.535371334 | C100: -0.621686691
A101: 1.83 | B101: 3.48722546 | C101: -0.6245346998
A102: 1.86 | B102: 3.439300149 | C102: -0.6274222118
A103: 1.89 | B103: 3.391596418 | C103: -0.6303501486
A104: 1.92 | B104: 3.344115303 | C104: =-beta/(SQRT(alfa^2-stath*A104)) -> -0.6333194624
A105: =IF(A104+dt*beta<ycurrent,A104+dt*beta,ycurrent) -> 1.95 | B105: =(SQRT(alfa^2-2*g*A105))^3/(3*g*beta) -> 3.296857853 | C105: -0.636331137
A106: 1.98 | B106: 3.249825131 | C106: -0.6393861893
A107: 2.01 | B107: 3.203018215 | C107: -0.6424856706
A108: 2.04 | B108: 3.156438202 | C108: -0.6456306685
A109: 2.07 | B109: 3.1100862 | C109: -0.6488223079
A110: 2.1 | B110: 3.063963338 | C110: -0.6520617533
A111: 2.13 | B111: 3.01807076 | C111: -0.65535021
A112: 2.16 | B112: 2.972409626 | C112: -0.6586889267
A113: 2.19 | B113: 2.926981117 | C113: -0.6620791966
A114: 2.22 | B114: 2.881786429 | C114: -0.6655223604
A115: 2.25 | B115: 2.836826778 | C115: -0.6690198079
A116: 2.28 | B116: 2.7921034 | C116: -0.6725729806
A117: 2.31 | B117: 2.74761755 | C117: -0.6761833742
A118: 2.34 | B118: 2.703370502 | C118: -0.6798525413
A119: 2.37 | B119: 2.659363553 | C119: -0.6835820939
A120: 2.4 | B120: 2.61559802 | C120: -0.6873737067
A121: 2.43 | B121: 2.572075241 | C121: -0.6912291202
A122: 2.46 | B122: 2.528796579 | C122: -0.695150144
A123: 2.49 | B123: 2.485763418 | C123: -0.6991386604
A124: 2.52 | B124: 2.442977167 | C124: -0.7031966281
A125: 2.55 | B125: 2.400439259 | C125: -0.7073260863
A126: 2.58 | B126: 2.358151152 | C126: -0.7115291591
A127: 2.61 | B127: 2.316114331 | C127: -0.71580806
A128: 2.64 | B128: 2.274330307 | C128: -0.7201650969
A129: 2.67 | B129: 2.232800619 | C129: -0.724602677
A130: 2.7 | B130: 2.191526835 | C130: -0.729123313
A131: 2.73 | B131: 2.15051055 | C131: -0.7337296283
A132: 2.76 | B132: 2.109753391 | C132: -0.7384243641
A133: 2.79 | B133: 2.069257017 | C133: -0.7432103858
A134: 2.82 | B134: 2.029023118 | C134: -0.7480906908
A135: 2.85 | B135: 1.989053418 | C135: -0.7530684157
A136: 2.88 | B136: 1.949349674 | C136: =-beta/(SQRT(alfa^2-stath*A136)) -> -0.7581468454
A137: 2.91 | B137: 1.909913681 | C137: -0.7633294221
A138: 2.94 | B138: 1.870747268 | C138: -0.7686197547
A139: 2.97 | B139: 1.831852304 | C139: -0.77402163
A140: 3 | B140: 1.793230697 | C140: -0.7795390234
A141: 3.03 | B141: 1.754884395 | C141: -0.7851761117
A142: 3.06 | B142: 1.71681539 | C142: -0.7909372864
A143: 3.09 | B143: 1.679025717 | C143: -0.7968271677
A144: 3.12 | B144: 1.641517454 | C144: -0.8028506202
A145: 3.15 | B145: 1.60429273 | C145: -0.8090127703
A146: 3.18 | B146: 1.567353722 | C146: -0.8153190235
A147: 3.21 | B147: 1.530702656 | C147: -0.8217750856
A148: 3.24 | B148: 1.494341813 | C148: -0.8283869832
A149: 3.27 | B149: 1.458273527 | C149: -0.8351610883
A150: 3.3 | B150: 1.422500192 | C150: -0.8421041435
A151: 3.33 | B151: 1.38702426 | C151: -0.8492232904
A152: 3.36 | B152: 1.351848245 | C152: -0.8565261007
A153: 3.39 | B153: 1.316974726 | C153: -0.8640206098
A154: 3.42 | B154: 1.282406351 | C154: -0.8717153539
A155: 3.45 | B155: 1.248145837 | C155: -0.8796194112
A156: 3.48 | B156: 1.214195976 | C156: -0.8877424467
A157: 3.51 | B157: 1.180559636 | C157: -0.896094762
A158: 3.54 | B158: 1.147239769 | C158: -0.9046873501
A159: 3.57 | B159: 1.114239408 | C159: -0.9135319564
A160: 3.6 | B160: 1.081561678 | C160: -0.9226411463
A161: 3.63 | B161: 1.049209796 | C161: -0.9320283798
A162: 3.66 | B162: 1.017187078 | C162: -0.9417080959
A163: 3.69 | B163: 0.9854969422 | C163: -0.9516958054
A164: 3.72 | B164: 0.9541429172 | C164: -0.9620081956
A165: 3.75 | B165: 0.9231286451 | C165: -0.9726632479
A166: 3.78 | B166: 0.8924578894 | C166: -0.9836803692
A167: 3.81 | B167: 0.8621345415 | C167: -0.9950805412
A168: 3.84 | B168: 0.8321626282 | C168: =-beta/(SQRT(alfa^2-stath*A168)) -> -1.006886488
A169: =IF(A168+dt*beta<ycurrent,A168+dt*beta,ycurrent) -> 3.87 | B169: =(SQRT(alfa^2-2*g*A169))^3/(3*g*beta) -> 0.8025463196 | C169: -1.019122867
A170: 3.87 | B170: 0.8025463196 | C170: -1.019122867
A171: 3.87 | B171: 0.8025463196 | C171: -1.019122867
A172: 3.87 | B172: 0.8025463196 | C172: -1.019122867
A173: 3.87 | B173: 0.8025463196 | C173: -1.019122867
A174: 3.87 | B174: 0.8025463196 | C174: -1.019122867
A175: 3.87 | B175: 0.8025463196 | C175: -1.019122867
A176: 3.87 | B176: 0.8025463196 | C176: -1.019122867
A177: 3.87 | B177: 0.8025463196 | C177: -1.019122867
A178: 3.87 | B178: 0.8025463196 | C178: -1.019122867
A179: 3.87 | B179: 0.8025463196 | C179: -1.019122867
A180: 3.87 | B180: 0.8025463196 | C180: -1.019122867
A181: 3.87 | B181: 0.8025463196 | C181: -1.019122867
A182: 3.87 | B182: 0.8025463196 | C182: -1.019122867
A183: 3.87 | B183: 0.8025463196 | C183: -1.019122867
A184: 3.87 | B184: 0.8025463196 | C184: -1.019122867
A185: 3.87 | B185: 0.8025463196 | C185: -1.019122867
A186: 3.87 | B186: 0.8025463196 | C186: -1.019122867
A187: 3.87 | B187: 0.8025463196 | C187: -1.019122867
A188: 3.87 | B188: 0.8025463196 | C188: -1.019122867
A189: 3.87 | B189: 0.8025463196 | C189: -1.019122867
A190: 3.87 | B190: 0.8025463196 | C190: -1.019122867
A191: 3.87 | B191: 0.8025463196 | C191: -1.019122867
A192: 3.87 | B192: 0.8025463196 | C192: -1.019122867
A193: 3.87 | B193: 0.8025463196 | C193: -1.019122867
A194: 3.87 | B194: 0.8025463196 | C194: -1.019122867
A195: 3.87 | B195: 0.8025463196 | C195: -1.019122867
A196: 3.87 | B196: 0.8025463196 | C196: -1.019122867
A197: 3.87 | B197: 0.8025463196 | C197: -1.019122867
A198: 3.87 | B198: 0.8025463196 | C198: -1.019122867
A199: 3.87 | B199: 0.8025463196 | C199: -1.019122867
A200: 3.87 | B200: 0.8025463196 | C200: =-beta/(SQRT(alfa^2-stath*A200)) -> -1.019122867
A201: 3.87 | B201: 0.8025463196 | C201: -1.019122867
A202: 3.87 | B202: 0.8025463196 | C202: -1.019122867
A203: 3.87 | B203: 0.8025463196 | C203: -1.019122867
A204: 3.87 | B204: 0.8025463196 | C204: -1.019122867
A205: 3.87 | B205: 0.8025463196 | C205: -1.019122867
A206: 3.87 | B206: 0.8025463196 | C206: -1.019122867
A207: 3.87 | B207: 0.8025463196 | C207: -1.019122867
A208: 3.87 | B208: 0.8025463196 | C208: -1.019122867
A209: 3.87 | B209: 0.8025463196 | C209: -1.019122867
A210: 3.87 | B210: 0.8025463196 | C210: -1.019122867
A211: 3.87 | B211: 0.8025463196 | C211: -1.019122867
A212: 3.87 | B212: 0.8025463196 | C212: -1.019122867
A213: 3.87 | B213: 0.8025463196 | C213: -1.019122867
A214: 3.87 | B214: 0.8025463196 | C214: -1.019122867
A215: 3.87 | B215: 0.8025463196 | C215: -1.019122867
A216: 3.87 | B216: 0.8025463196 | C216: -1.019122867
A217: 3.87 | B217: 0.8025463196 | C217: -1.019122867
A218: 3.87 | B218: 0.8025463196 | C218: -1.019122867
A219: 3.87 | B219: 0.8025463196 | C219: -1.019122867
A220: 3.87 | B220: 0.8025463196 | C220: -1.019122867
A221: 3.87 | B221: 0.8025463196 | C221: -1.019122867
A222: 3.87 | B222: 0.8025463196 | C222: -1.019122867
A223: 3.87 | B223: 0.8025463196 | C223: -1.019122867
A224: 3.87 | B224: 0.8025463196 | C224: -1.019122867
A225: 3.87 | B225: 0.8025463196 | C225: -1.019122867
A226: 3.87 | B226: 0.8025463196 | C226: -1.019122867
A227: 3.87 | B227: 0.8025463196 | C227: -1.019122867
A228: 3.87 | B228: 0.8025463196 | C228: -1.019122867
A229: 3.87 | B229: 0.8025463196 | C229: -1.019122867
A230: 3.87 | B230: 0.8025463196 | C230: -1.019122867
A231: 3.87 | B231: 0.8025463196 | C231: -1.019122867
A232: 3.87 | B232: 0.8025463196 | C232: -1.019122867
A233: =IF(A232+dt*beta<ycurrent,A232+dt*beta,ycurrent) -> 3.87 | B233: =(SQRT(alfa^2-2*g*A233))^3/(3*g*beta) -> 0.8025463196 | C233: -1.019122867
A234: 3.87 | B234: 0.8025463196 | C234: =(alfa^2-(3*beta*B234*g)^(2/3))/(2*g) -> 3.87
A235: 3.87 | B235: 0.8025463196 | C235: 3.87
A236: 3.87 | B236: 0.8025463196 | C236: 3.87
A237: 3.87 | B237: 0.8025463196 | C237: 3.87
A238: 3.87 | B238: 0.8025463196 | C238: 3.87
A239: 3.87 | B239: 0.8025463196 | C239: 3.87
... 301 more rows

Sheet Φύλλο3
